Cogmind - Beta 14 *** ADVENTURER MODE // 2025.03.06 @ 20:11:42 Player: BoomBlip Result: Destroyed by KA-675(R) with Subdweller Laser Performance ------------- Evolutions (0) 0 Regions Visited (2) 400 Robots Destroyed (25) 125 Value Destroyed (797) 797 Prototype IDs (11) 220 Alien Tech Used (0) 0 Bonus (0) 0 TOTAL SCORE: 1542 Bonus ------- None Cogmind --------- Core Integrity 0/250 Matter 254/300 Energy 200/200 System Corruption 1% Temperature Cool (6) Movement Rolling (80) Location -10/Subcaves Parts ------- > --- POWER (1) -------- Subdweller Power Source > --- PROPULSION (2) --- Wheel Wheel > --- UTILITY (2) ------ Small Storage Unit Targeting Computer > --- WEAPON (2) ------- Barrage Gun Battle Cannon > --- INVENTORY (8) ---- Meta Core Makeshift Light Armor Plating Battle Rifle Subdweller Machine Gun Subdweller Machine Gun Scrap Shield Fragment (47) Scrap Shield Fragment (47) Scrap Shield Fragment (46) Peak State ------------ > --- POWER ------------ Subdweller Power Source > --- PROPULSION ------- Subdweller Monowheel Subdweller Monowheel > --- UTILITY ---------- Small Storage Unit Targeting Computer > --- WEAPON ----------- Subdweller Laser Barrage Gun > --- INVENTORY -------- Ion Engine Spiked Treads Wheel Subdweller Beam Cannon Subdweller Machine Gun Scrap Shield Fragment Scrap Shield Fragment Scrap Shield Fragment [Rating: 14] Favorites ----------- Power Subdweller Power Source Engine Subdweller Power Source Power Core Light Nuclear Core Propulsion Aluminum Leg Treads Light Treads Leg Aluminum Leg Wheel Wheel Utility Small Storage Unit Storage Small Storage Unit Processor Targeting Computer Weapon Assault Rifle Energy Gun Subdweller Laser Ballistic Gun Assault Rifle Ballistic Cannon Battle Cannon Build | -11 -10 -10 ------- Run | Yrd Mat Sub Slots Evolved . | . . . Power . | . . . Propulsion . | . . . Utility . | . . . Weapon . | . . . Parts Attached 30 | . 7 23 Power 10 | . 3 7 Engine 9 | . 2 7 Core 1 | . 1 . Reactor . | . . . Propulsion 11 | . 1 10 Treads 2 | . . 2 Leg 1 | . 1 . Wheel 8 | . . 8 Hover . | . . . Flight . | . . . Utility 1 | . 1 . Device . | . . . Storage . | . . . Processor 1 | . 1 . Hackware . | . . . Protection . | . . . Artifact . | . . . Weapon 8 | . 2 6 Energy Gun 3 | . . 3 Energy Cannon . | . . . Ballistic Gun 4 | . 2 2 Ballistic Cannon 1 | . . 1 Launcher . | . . . Special Weapon . | . . . Impact Weapon . | . . . Slashing Weapon . | . . . Piercing Weapon . | . . . Special Melee Weapon . | . . . Unidentified Prototypes . | . . . Parts Lost 9 | . . 9 Power 2 | . . 2 Propulsion 5 | . . 5 Utility . | . . . Weapon 2 | . . 2 Highest Loss Streak 5 | . . 5 To Critical Strikes . | . . . Average Slot Usage (%) 98 | . 98 97 Engine 9 | . 6 13 Core 3 | . 7 . Leg 13 | . 28 . Wheel 13 | . . 25 Storage 14 | . 14 14 Processor 13 | . 12 14 Energy Gun 3 | . . 6 Ballistic Gun 20 | . 28 13 Ballistic Cannon 3 | . . 7 Peak Build Rating 14 | . 9 14 Average Rating 10 | . 7 12 On Entrance 7 | 6 6 9 Naked Turns . | . . . Heaviest Build 17 | 11 13 17 Greatest Support 40 | 20 20 40 Greatest Overweight (x) 2 | . . 2 Average Overweight (x) . | . . . Largest Inventory Capacity 8 | . 8 8 Average Capacity 8 | . 8 8 Most Carried 8 | . 8 8 Average Carried 7 | . 7 7 Final Capacity 8 | 8 8 8 Final Carried 8 | 6 8 8 Class Distribution -------------------- 100% | Mutant Dominant Class ---------------- Mutant | -10/Materials Mutant | -10/Subcaves Resources | -11 -10 -10 ----------- Run | Yrd Mat Sub Matter Collected 945 | 200 175 570 Remotely . | . . . Salvage Created 878 | . 264 614 Parts 53 | . 22 31 Haulers Intercepted . | . . . Recyclers Shooed . | . . . Parts Field Recycled . | . . . Retrieved Matter . | . . . Parts Self-Destructed 20 | . . 20 Prevented . | . . . Kills | -11 -10 -10 ------- Run | Yrd Mat Sub Combat Hostiles Destroyed 22 | . 9 13 Guns 22 | . 9 13 Classes Destroyed 5 | . 3 2 Builder 1 | . 1 . Turret 2 | . . 2 Swarmer 5 | . 5 . Grunt 4 | . 4 . Subdweller 13 | . . 13 Best Kill Streak 3 | . 3 3 Combat Bots Only 3 | . 3 3 Max Kills in Single Turn 1 | . 1 1 Gunslinging . | . . . Exploded . | . . . Melee . | . . . Uniques/NPCs Destroyed . | . . . Combat | -11 -10 -10 -------- Run | Yrd Mat Sub Hostile Shots Fired 176 | . 43 133 Missed 61 | . 11 50 Damage Taken 1587 | . 211 1376 Core 260 | . 37 223 Absorbed by Shields . | . . . Ignored by Resistances 442 | . 70 372 Core Remaining (%) 100 | 100 . . Volleys Fired 106 | . 23 83 Largest 2 | . 2 2 Hottest 115 | . 40 115 Shots Fired 206 | . 47 159 Gun 175 | . 47 128 Cannon 31 | . . 31 Launcher . | . . . Special . | . . . Kinetic 148 | . 47 101 Thermal 58 | . . 58 Explosive . | . . . Electromagnetic . | . . . Robot Hit Streak 36 | . 9 36 Robot Miss Streak 2 | . 1 2 Penetration Max . | . . . Secondary Targets 2 | . 1 1 Max Gunslinging Chain 1 | . 1 1 Shots Hit Robots 132 | . 33 99 Core Hits 46 | . 18 28 Critical Kills 1 | . . 1 Critical Parts Destroyed . | . . . Critical Strikes 6 | . . 6 Burn 3 | . . 3 Destroy 3 | . . 3 Melee Attacks . | . . . Impact . | . . . Slashing . | . . . Piercing . | . . . Sneak Attacks . | . . . Combat Hostiles . | . . . Follow-up Attacks . | . . . Damage Inflicted 1894 | . 355 1539 Guns 1765 | . 355 1410 Cannons 129 | . . 129 Explosions . | . . . Melee . | . . . Ramming . | . . . Kinetic 1059 | . 355 704 Thermal 835 | . . 835 Explosive . | . . . Electromagnetic . | . . . Impact . | . . . Slashing . | . . . Piercing . | . . . Highest Corruption 1 | . 1 1 Average Corruption 1 | . 1 1 Corruption Purged . | . . . Corruption Blocked . | . . . Effects 16 | . 4 12 Message Errors 3 | . 1 2 Matter Fused 4 | . 1 3 Heat Flow Errors 2 | . . 2 Parts Fused 1 | . 1 . Data Loss (minor) 1 | . . 1 Data Loss (major) 2 | . . 2 Misfires 1 | . 1 . Weapon Failures 2 | . . 2 Overload Shots . | . . . Overflow Damage . | . . . Projectiles . | . . . Explosions . | . . . Melee . | . . . Knockbacks 2 | . . 2 Impact . | . . . Kinetic 2 | . . 2 Secondary . | . . . Self-Inflicted Damage . | . . . Shots . | . . . Rammed . | . . . Targets Rammed . | . . . Kicked . | . . . Crushed . | . . . Highest Temperature 176 | . 12 176 Average Temperature 33 | . 7 34 Received Heat Transfer 450 | . 48 402 Siege Activations . | . . . Robots Corrupted . | . . . Combat Hostiles . | . . . Parts Fried . | . . . Impact Corruptions . | . . . Robots Melted . | . . . Combat Hostiles . | . . . Parts Melted 1 | . . 1 Heat Transferred 1991 | . . 1991 Parts Sabotaged . | . . . Parts Stolen . | . . . Parts Stripped . | . . . Power Chain Reactions . | . . . Alert | -11 -10 -10 ------- Run | Yrd Mat Sub Peak Influence 146 | . 146 . Initial . | . . . Average 25 | . 25 . Maximum Alert Level . | . . . Low Security (%) 100 | . 100 . Level 1 . | . . . Level 2 . | . . . Level 3 . | . . . Level 4 . | . . . Level 5 . | . . . High Security . | . . . Max Security . | . . . Squads Dispatched 1 | . 1 . Investigation 1 | . 1 . Extermination . | . . . Reinforcement . | . . . Assault . | . . . Garrison . | . . . Intercept . | . . . Searches Triggered . | . . . Construction Impeded . | . . . Haulers Reinforced . | . . . Active Scanning Responses . | . . . Cargo Convoy Interrupts . | . . . Stealth | -11 -10 -10 --------- Run | Yrd Mat Sub Distress Signals . | . . . Communications Jammed . | . . . Distress Signals . | . . . Times Spotted 37 | . 18 19 Peak Tracking Total 4 | . 4 3 Tactical Retreats 4 | . 1 3 Traps | -11 -10 -10 ------- Run | Yrd Mat Sub Traps Triggered 3 | . 2 1 Indirectly . | . . . Trap Hack Attempts . | . . . Triggered . | . . . Disarmed . | . . . Reprogrammed . | . . . Reused . | . . . Traps Extracted . | . . . Installed . | . . . Triggered . | . . . Machines | -11 -10 -10 ---------- Run | Yrd Mat Sub Machines Disabled 3 | . . 3 Max in Single Turn 1 | . . 1 Machines Repaired . | . . . Machines Dismantled . | . . . Machines Sabotaged . | . . . Overloaded Fab Kills . | . . . Hacking | -11 -10 -10 --------- Run | Yrd Mat Sub Machines Accessed 7 | . 4 3 Terminals 4 | . 4 . Fabricators . | . . . Repair Stations . | . . . Recycling Units . | . . . Scanalyzers . | . . . Garrison Access . | . . . Total Hacks 26 | . 14 12 Successful 19 | . 7 12 Failed 7 | . 7 . Catastrophic 1 | . 1 . Database Lockouts . | . . . Manual 12 | . 12 . Terminals 14 | . 14 . Fabricators . | . . . Repair Stations . | . . . Recycling Units . | . . . Scanalyzers . | . . . Garrison Access . | . . . Terminal Hacks 16 | . 4 12 Record 9 | . . 9 Open Door 1 | . . 1 Branch Access Points 1 | . 1 . Unreport Threat 1 | . 1 . Zone Layout 2 | . 2 . Derelict Proto ID Bank 1 | . . 1 Release Object 1 | . . 1 Fabricator Hacks . | . . . Repair Station Hacks . | . . . Recycling Unit Hacks . | . . . Scanalyzer . | . . . Garrison Access Hacks . | . . . Unauthorized Hacks 3 | . 3 . Terminals 3 | . 3 . Botnet 3 | . 3 . Fabricators . | . . . Repair Stations . | . . . Recycling Units . | . . . Scanalyzers . | . . . Garrison Access . | . . . Data Cores Recovered . | . . . Used . | . . . Hacking Detections 3 | . 3 . Full Trace Events . | . . . Feedback Events . | . . . Feedback Blocked . | . . . Robot Schematics Acquired . | . . . Robots Built . | . . . Authchips . | . . . Time . | . . . Total Robot Build Rating . | . . . Part Schematics Acquired . | . . . Parts Built . | . . . Authchips . | . . . Time . | . . . Total Part Build Rating . | . . . Parts Repaired . | . . . Time . | . . . Parts Recycled . | . . . Recycled Matter . | . . . Retrieved Matter . | . . . Retrieved Components . | . . . Parts Scanalyzed . | . . . Part Schematics Acquired . | . . . Parts Damaged . | . . . Bothacking | -11 -10 -10 ------------ Run | Yrd Mat Sub Used RIF Installer . | . . . Robots Hacked . | . . . Non-combat . | . . . Combat . | . . . Robot Hacks Applied . | . . . Relay Couplers Released . | . . . Fabnet Peak Effective % . | . . . Robots Rewired . | . . . Allies Hacked . | . . . Hacks Repelled . | . . . Allies | -11 -10 -10 -------- Run | Yrd Mat Sub Total Allies . | . . . Largest Group . | . . . Highest-Rated Group . | . . . Highest-Rated Ally . | . . . Total Orders . | . . . Ally Attacks . | . . . Total Damage . | . . . Kills . | . . . Allies Corrupted . | . . . Allies Melted . | . . . Intel | -11 -10 -10 ------- Run | Yrd Mat Sub Robot Analysis Total . | . . . Derelict Logs Recovered 1 | . . 1 Drone Launches . | . . . Drone Recoveries . | . . . Exploration | -11 -10 -10 ------------- Run | Yrd Mat Sub Turns Passed 3941 | . 1875 2066 Spaces Moved 2278 | 1 349 1928 Core 1 | . . 1 Treads 43 | . . 43 Legs 377 | 1 349 27 Wheels 1857 | . . 1857 Hover . | . . . Flight . | . . . Fastest Speed 80 | 120 120 80 Average Speed 93 | 120 120 89 Slowest Speed 160 | 120 120 160 Overloaded Moves . | . . . Propulsion Burnouts . | . . . Robots Hopped . | . . . Cave-ins Triggered . | . . . Exploration Rate (%) 50 | 2 64 84 Regions Visited 2 Branch Regions 1 Pre-discovered Areas 2 | . . 2 Known Exits Taken . | . . . Unknown Exits Taken 2 | 1 1 . Scrap Searched 3 | . . 3 Spaces Dug . | . . . Terrain Destroyed . | . . . Melee . | . . . Projectile . | . . . AOE . | . . . Terrain Rammed . | . . . Walls Destroyed . | . . . Machines Disabled . | . . . Actions | -11 -10 -10 --------- Run | Yrd Mat Sub Total 3901 | . 1768 2133 Wait 1437 | . 1380 57 Move 2276 | . 348 1928 Hop . | . . . Pick Up 21 | . 3 18 Fast Attach 8 | . 1 7 Attach 5 | . . 5 Detach . | . . . Swap 17 | . 6 11 Drop 30 | . 7 23 Fire 106 | . 23 83 Melee . | . . . Ram . | . . . Kick . | . . . Crush . | . . . Escape Stasis . | . . . Rewire . | . . . Trap . | . . . Miscellaneous 1 | . . 1 Route ------- -11/Scrapyard -10/Materials (discovered 5 exits: [*Mat x2] / *Min x2 / *Sub) -10/Subcaves (discovered 2 exits: [*Mat] / [*Rec]) History --------- Turn | Location | Event 1 | -11/Scrapyard | Discovered new exit (range 0) 1 | -11/Scrapyard | Entered Materials 67 | -10/Materials | Identified exit to Mines 163 | -10/Materials | Discovered new exit (range 14) 316 | -10/Materials | Build established: Mutant 722 | -10/Materials | Discovered new exit (range 16) 1870 | -10/Materials | Discovered new exit (range 4) 1876 | -10/Materials | Entered Subcaves 1882 | -10/Subcaves | Learned location of Zion (-6) 1882 | -10/Subcaves | Met a Zionite searching for "candidates" 1906 | -10/Subcaves | A Subdweller sparked back to life 1906 | -10/Subcaves | A Subdweller sparked back to life 1906 | -10/Subcaves | A Subdweller sparked back to life 1932 | -10/Subcaves | Core integrity fell below 50% 1974 | -10/Subcaves | Lost 5 parts (1p2n2w) 2012 | -10/Subcaves | A swath of the cavern ceiling suddenly collapsed 2077 | -10/Subcaves | Core integrity fell below 20% 2092 | -10/Subcaves | Lost 3 parts (1p2n) 2098 | -10/Subcaves | Shifting Twisted Machinery released Spk. Treads 2103 | -10/Subcaves | Shifting Twisted Machinery released Barrage Gun 2176 | -10/Subcaves | Shifting Twisted Machinery released Sub. Laser 2183 | -10/Subcaves | Shifting Twisted Machinery released Sub. Power Source 2295 | -10/Subcaves | Discovered new exit (range 13) 2326 | -10/Subcaves | Discovered new exit (range 10) 2471 | -10/Subcaves | A swath of the cavern ceiling suddenly collapsed 2524 | -10/Subcaves | Released subatomizers from SUBCON Basin 2811 | -10/Subcaves | Visited 4L-MR0's lab 2849 | -10/Subcaves | Found Meta Core 3220 | -10/Subcaves | Shifting Twisted Machinery released Mak. System Restoration Module 3235 | -10/Subcaves | Shifting Twisted Machinery released Sub. Beam Cannon 3933 | -10/Subcaves | Ambushed by Subdwellers from Twisted Machinery 3942 | -10/Subcaves | Destroyed by KA-675(R) with Subdweller Laser Last Messages --------------- 03784_ System corrupted: Substantial component data lost. 03793_ Triggered Piercing Trap. 03793_ Spikes shoot up from the floor. 03793_ Critical hit (Impale). 03859_ Dropped Broken Sub. Power Source. 03877_ JM-IKQ(R) knocked back. 03883_ Destroyed Scrap Shield. 03886_ JM-IKQ(R) destroyed. 03892_ Acquired Sub. Machine Gun. 03894_ Dropped Ion Engine. 03894_ Acquired Sub. Power Source. 03896_ Acquired 28 matter. 03897_ Acquired 5 matter. 03899_ Acquired 7 matter. 03922_ Dropped Sub. Machine Gun. 03922_ Acquired Battle Rifle. 03924_ Acquired 62 matter. 03927_ Acquired 8 matter. 03933_ D4-VAB(R) emerges from the Twisted Machinery. 03940_ D4-VAB(R) destroyed. Map ----- +----------------------------------------------------+ | ####### #?# ##??????????????? | | ####### #?# #??????????????? | | # # ## ### ##??????????????? | | #### #??????????????? | | ???# ##??????????????? | | ???# ### # #???????????????? | | ???#### ###?## ###???????????????? | | ??????## ##????# ####?????????????? | | ???????###?????# #?????????????? | | ???????????????## #?????????????? | | ????????????????## #?????????????? | | ?????????????????# ##?????????????? | | ?????????????????# ### ##?????????????? | | ?????????????????###?# #?????????????? | | ?????????????????????## #?????????????? | | ?????????????????????## ##?????????????? | | ????????????????????## #??????????????? | | ????????????????????# #??????????????? | | ????????????????????# [ ##?????????????? | | ????????????????????##### [ #?????????????? | | ????????????????????????# / #?????????????? | | ???????????????????????##=!##?????????????? | | ???????????????????????# ! #??????????????? | | ???????????????????????## #??????????????? | | ?????????????????### ### %##?????????????? | | ?????????????????# @ #?????????????? | | ?????????????????# # # ##?????????????? | | ?????????????????##??#### #?????????????? | | ?????????????????????## ##?????????????? | | ?????????????????# # #?????????????? | | ??????????????????# ##?????????????? | | ?????????????????# #??????????????? | | ?????????????????# #??????????????? | | ?????????????????# ### ##??????????????? | | ?????????????????#???## ##???????????????? | | ??????????????????????# ?????????????????? | | ??????????????????????# ?????????????????? | | ??????????????????????# =?????????????????? | | ??????????????????????#R%?????????????????? | | ?????????????????????? &?????????????????? | | ?????????????????????? ?????????????????? | | ?????????????????????? ?????????????????? | | ?????????????????????" ??????????????????? | | ?????????????????????" ??????????????????? | | ????????????????????? #??????????????????? | | ??????????????????????????????????????????? | | ??????????????????????????????????????????? | | ??????????????????????????????????????????? | | ??????????????????????????????????????????? | | ??????????????????????????????????????????? | +----------------------------------------------------+ Best States ------------- Heat Dissipation 25 Energy Generation 15 Energy Capacity 250 Matter Stores 300 Matter Capacity 300 Sight Range 16 Terrain Scan Density 10 Resistance: KI 20 Resistance: TH 20 Resistance: EX 20 Resistance: EM 20 Resistance: I 20 Resistance: S 20 Resistance: P 20 Evasion (%) 55 Targeting Accuracy 5 Recoil Reduction 2 Offensive Hacking 10 Item Schematics ----------------- None Robot Schematics ------------------ None Fabricated ------------ Nothing Alien Tech Used ----------------- None Achievements -------------- None Challenges ------------ None Game ------ Seed LegIntegrityEngine Manual? 0 Play Time 00:37:04 Cumulative 111.4 hours Start 2025.03.06 @ 15:20:39 End 2025.03.06 @ 20:11:42 Sessions 1 Manual Loads 0 Difficulty Adventurer Special Mode None Game No. 165 Rogue 150 Adventurer 13 Explorer 2 Win Type - Total 1 Types 1/0/0/0/0/0/0/0/0 Lore% 21 Gallery% 55 Achievement% 42 Wizard Run 0 Options --------- Layout 0 ASCII 0 Keyboard 0 Movement Arrows Keybinds 0 Fullscreen 1 Font 36/Smallcaps Map View 76x50 Zoom Use 0% Tactical HUD 1 Map Filters NONE Filters NONE Steam 1 RUN: 578fcf4e-53b7-4fa3-a445-ea2e49f0212d